[Event "Women's Chess World Championship"]
[Site "Chess.com"]
[Date "2023.07.05"]
[Round "1"]
[White "Lei, Tingjie"]
[Black "Ju, Wenjun"]
[Result "1/2-1/2"]
[WhiteElo "2554"]
[BlackElo "2564"]
[ECO "C67"]
[EventDate "2023.??.??"]
[Annotator "rafael"]
[PlyCount "100"]
[Beauty "5567754014727"]
[EventType "game"]
[TimeControl "40/5400+30:1800+30"]

1.e4 e5 2.Nf3 Nc6 3.Bb5 Nf6 {In a world championship match, the Berlin is always to be expected. Nowadays it's considered the most solid and reliable way to meet the Ruy Lopez.} 4.O-O Nxe4 5.Re1 ( {The famous Berlin endgame begins after} 5.d4 Nd6 6.Bxc6 dxc6 7.dxe5 Nf5 8.Qxd8+ Kxd8 {This position was Kasparov's downfall in his 2000 match against Kramnik. He tried to break it and became frustrated chasing a win that never came. This position was once the absolute main line of this system, but this has changed. Players with White started to think of other ways to fight for an advantage, although the endgame is still regularly seen and Vachier Lagrave is one of the elite grandmasters that still believe in White's chances. He even beat Carlsen in a recent game from this position.} ) 5...Nd6 6.Nxe5 Be7 7.Bf1 Nxe5 8.Rxe5 O-O 9.d4 Bf6 10.Re1 Re8 11.Nc3 $5 {[%c_effect c3;square;c3;type;Interesting;persistent;true] This pawn sacrifice is a fresh move, much less played than 11.c3, 11.Bf4 or 11.Rxe8+.} ( 11.c3 ) ( 11.Bf4 ) ( 11.Rxe8+ ) 11...Rxe1 12.Qxe1 Bxd4 13.Bd3 $5 {[%c_effect d3;square;d3;type;Interesting;persistent;true] An interesting and dangerous move, aimed against Black's idea of finishing development with 13...Ne8 followed by the advance of the d-pawn.} ( 13.Bf4 Ne8 14.Nd5 {has also been tried, but Black is doing OK here.} ) 13...Bxc3 ( 13...Ne8 $4 {[%c_effect e8;square;e8;type;Blunder;persistent;true] loses to} 14.Qe4 ) 14.Qxc3 Ne8 ( 14...b6 {was played recently by Gukesh in an online game, but he didn't solve the opening problems.} 15.Bf4 Bb7 16.Re1 Qf6 $6 {[%c_effect f6;square;f6;type;Inaccuracy;persistent;true]} 17.Qxf6 gxf6 18.Bxd6 cxd6 19.Re3 {with a clear advantage for White in Sadhwani-Gukesh, U20 Speed Chess.com (blitz) 2023.} ) 15.b3 {This position featured in two games from GM Van Foreest, a creative and respected theoretician whose games tend to be followed closely by the chess community due to its abundance of ideas in all phases.} ( 15.Bf4 {was played in an email game where White's idea was first developed.} 15...d6 16.Re1 Be6 {Black equalized and the game was later drawn. Skowronek-Beer, email 2014.} ) 15...d5 {A new move, but hardly surprising. It's very natural and the first choice of the computer.} ( 15...d6 {is less accurate:} 16.Bb2 Bd7 ( 16...Be6 17.Qb4 $1 {[%c_effect b4;square;b4;type;GreatFind;persistent;true]} 17...Bd5 18.Qf4 Nf6 19.Re1 Be6 20.Re3 {with a strong attack on the kingside in Van Foreest-Firouzja, Zagreb (rapid) 2022.} ) ( {If} 16...Qf6 17.Qe1 $1 {[%c_effect e1;square;e1;type;GreatFind;persistent;true] avoids the queen exchange and keeps the pressure.} ) 17.Qb4 $1 {[%c_effect b4;square;b4;type;GreatFind;persistent;true] again this strong plan gives White the advantage.} 17...Bc6 18.Qf4 Qe7 19.Bc3 {Preparing to play 20.Re1.} 19...Nf6 $2 {[%c_effect f6;square;f6;type;Mistake;persistent;true]} 20.Re1 Nd5 21.Bxh7+ {Black resigned in Van Foreest-Sadhwani, Chesskid Cup (blitz) 2023. After} 21...Kxh7 22.Qf5+ {Black's queen is lost.} ) 16.Bf4 {The bishop changes its destination.} ( 16.Bb2 Be6 ( 16...Qf6 17.Re1 Be6 18.Re5 {with compensation for the pawn.} ) 17.Qb4 b6 $1 {[%c_effect b6;square;b6;type;GreatFind;persistent;true]} 18.Qf4 c5 {This is a much-improved version for Black compared to the games played by Van Foreest.} ) 16...Be6 17.Re1 {White has the pair of bishops and good piece play, but Black is a pawn up and has no weakness. The position is equal and the Berlin Defense survives once again.} 17...Qd7 18.a4 {Lei was still playing very fast at this point.} 18...Nd6 {Black has many other possible moves. This one is also good.} 19.Re3 {The challenger finally took some time before playing this move. The rook is heading for g3.} 19...Ne4 $5 {[%c_effect e4;square;e4;type;Interesting;persistent;true] Giving the pawn back in order to exchange queens.} ( 19...Bf5 {leads to equality:} 20.Rg3 ( 20.Bxd6 $2 {[%c_effect d6;square;d6;type;Mistake;persistent;true] doesn't work due to} 20...Qxd6 $1 {[%c_effect d6;square;d6;type;GreatFind;persistent;true] and if} 21.Bxf5 d4 {wins material.} ) 20...Bg6 21.h4 Ne4 22.Bxe4 dxe4 23.Qxc7 ( 23.h5 $2 {[%c_effect h5;square;h5;type;Mistake;persistent;true]} 23...Qd1+ ) 23...Qxc7 24.Bxc7 {with a draw.} ) ( 19...Nf5 {is also possible:} 20.Rh3 {The position is equal according to the machine, but it looks somewhat dangerous for Black to human eyes.} ) 20.Qxc7 ( 20.Bxe4 $2 {[%c_effect e4;square;e4;type;Mistake;persistent;true]} 20...d4 ) 20...Qxc7 21.Bxc7 Nc5 $1 {[%c_effect c5;square;c5;type;GreatFind;persistent;true] The game is very close to a draw.} 22.Bf1 Rc8 $6 {[%c_effect c8;square;c8;type;Inaccuracy;persistent;true] This makes Black's defensive task more difficult. Both 22...d4 and 22...Bf5 lead to an equal position.} ( 22...d4 23.Re5 b6 $1 {[%c_effect b6;square;b6;type;GreatFind;persistent;true]} ( 23...Nd7 24.Rb5 b6 25.Bd6 {is better for White.} ) 24.a5 d3 $1 {[%c_effect d3;square;d3;type;GreatFind;persistent;true]} 25.cxd3 Rc8 26.axb6 axb6 27.Bd6 ( 27.Bxb6 $2 {[%c_effect b6;square;b6;type;Mistake;persistent;true]} 27...Nd7 {loses material.} ) 27...Bxb3 {with a likely draw.} ) ( 22...Bf5 {is the simplest:} 23.Rc3 Ne4 ( 23...Ne6 24.Bg3 Rd8 ) 24.Rf3 Bg6 {with equality.} ) 23.Be5 Nd7 24.Bd3 Nc5 ( 24...Nxe5 25.Rxe5 {The endgame is still close to a draw, but Black will have to suffer a little with the isolated queen's pawn.} ) 25.Be2 Nd7 26.Bc3 a6 $6 {[%c_effect a6;square;a6;type;Inaccuracy;persistent;true]} ( 26...d4 $1 {[%c_effect d4;square;d4;type;GreatFind;persistent;true] is better:} 27.Bxd4 Rxc2 {The position is more or less equal since Black's activity compensates the pair of bishops.} ) 27.h4 Nf8 ( 27...d4 28.Bxd4 Rxc2 29.a5 $1 {[%c_effect a5;square;a5;type;GreatFind;persistent;true] The endgame is more dangerous for Black now. The queenside structure is fixed and the b7-pawn is weak.} ) 28.g4 {A good move, preventing …Bf5. There's another good option:} ( 28.Bd1 $1 {[%c_effect d1;square;d1;type;GreatFind;persistent;true] is a superb prophylactic move suggested by the computer, defending the pawn and freeing the c3-bishop. The main plan now is Bd4-c3 and torture Black for a long time. But before doing that, White might also consider advancing the kingside or bringing the king to the center. The advantage is clear.} ) 28...f5 $6 {[%c_effect f5;square;f5;type;Inaccuracy;persistent;true] A good idea with a tactical flaw.} ( 28...Ng6 29.h5 Nf4 30.Bd1 {The knight is unstable on f4.} ) ( 28...Bd7 $1 {[%c_effect d7;square;d7;type;GreatFind;persistent;true] followed by 29...Ne6 is the best way to defend.} ) 29.gxf5 $6 {[%c_effect f5;square;f5;type;Inaccuracy;persistent;true]} ( 29.Bb4 $1 {[%c_effect b4;square;b4;type;GreatFind;persistent;true] is very unpleasant for Black.} 29...Kf7 ( 29...Bf7 $2 {[%c_effect f7;square;f7;type;Mistake;persistent;true]} 30.gxf5 Rxc2 31.Re7 {with a winning advantage.} ) ( 29...f4 {doesn't help:} 30.Re5 ( 30.Rc3 {is also good.} ) 30...Kf7 31.Bxf8 $1 {[%c_effect f8;square;f8;type;GreatFind;persistent;true]} 31...Rxf8 32.g5 {with a very difficult endgame for Black.} ) 30.gxf5 Bxf5 31.Re7+ Kf6 32.c4 {White has excellent winning chances.} ( 32.Rxb7 {is also possible, although Black has some counterplay after} 32...Rxc2 33.Bxa6 Ne6 ) ) 29...Bxf5 30.Bf3 Be4 $1 {[%c_effect e4;square;e4;type;GreatFind;persistent;true] This move saves Black.} 31.Bxe4 dxe4 32.Bb4 Re8 {This is somewhat passive. Black had other options.} ( 32...Rxc2 33.Rxe4 Rc8 $1 {[%c_effect c8;square;c8;type;GreatFind;persistent;true] An important move.} ( 33...Ng6 $2 {[%c_effect g6;square;g6;type;Mistake;persistent;true]} 34.h5 {The knight has no good squares.} ) ( 33...Kf7 $2 {[%c_effect f7;square;f7;type;Mistake;persistent;true]} 34.Rf4+ {wins the poor knight.} ) ( 33...Nd7 $2 {[%c_effect d7;square;d7;type;Mistake;persistent;true]} 34.Re8+ Kf7 35.Re7+ {game over.} ) ( 33...Rc7 $2 {[%c_effect c7;square;c7;type;Mistake;persistent;true]} 34.Re8 Rf7 35.h5 {Black is in a sad type of zugzwang. Her pieces can barely move.} ) 34.Re7 ( 34.h5 Nd7 35.Re7 Nc5 $1 {[%c_effect c5;square;c5;type;GreatFind;persistent;true] with a probable draw.} ) 34...Ng6 35.Rxb7 Nxh4 {Black should be able to achieve a draw, although it still looks dangerous.} ) ( 32...Ne6 {is a very interesting pawn sacrifice.} 33.Rxe4 Kf7 34.c3 ( 34.c4 Rd8 ) 34...Rd8 {Black has good compensation with the active rook and knight.} ) 33.Bxf8 {Since we all know that \"all rook endgames are drawn\", it's better to look for another move here.} ( 33.f3 $1 {[%c_effect f3;square;f3;type;GreatFind;persistent;true] poses more problems:} 33...Ng6 34.Be1 $1 {[%c_effect e1;square;e1;type;GreatFind;persistent;true]} 34...Ne5 $1 {[%c_effect e5;square;e5;type;GreatFind;persistent;true]} ( 34...Rc8 $2 {[%c_effect c8;square;c8;type;Mistake;persistent;true] Black shouldn't try to restore material equality since the position is horrible after} 35.Rxe4 Rxc2 36.h5 $1 {[%c_effect h5;square;h5;type;GreatFind;persistent;true]} 36...Nf8 37.Bb4 $1 {[%c_effect b4;square;b4;type;GreatFind;persistent;true]} 37...Rc8 38.Re7 ) 35.fxe4 Rc8 {The compensation should be enough to achieve a draw, although a pawn is a pawn.} ) 33...Kxf8 34.Kf1 Kf7 ( 34...b5 $1 {[%c_effect b5;square;b5;type;GreatFind;persistent;true] is more accurate.} 35.axb5 ( 35.a5 b4 ) 35...axb5 36.Rc3 Re5 ) 35.Ke2 ( 35.Rc3 $1 {[%c_effect c3;square;c3;type;GreatFind;persistent;true] White can activate the rook with some practical winning chances.} ) 35...Kf6 36.Rg3 ( 36.Rc3 {again this is possible.} ) 36...b5 $1 {[%c_effect b5;square;b5;type;GreatFind;persistent;true]} 37.axb5 axb5 38.Rg5 Rc8 ( 38...Re5 39.Rxe5 Kxe5 {You always have to be extra careful when going for a pawn endgame, especially when it's not really necessary. That said, the computer shows a draw here as well, for instance:} 40.c3 Kf4 41.c4 bxc4 42.bxc4 Ke5 43.Ke3 g6 44.f3 exf3 45.Kxf3 Kd4 ) 39.Kd2 Rd8+ 40.Ke3 ( 40.Kc3 Rc8+ 41.Kb2 {This is a possible winning attempt, but Black is fine with careful play.} 41...b4 42.Rb5 Rf8 $1 {[%c_effect f8;square;f8;type;GreatFind;persistent;true]} 43.Rxb4 Ke5 {The f2-pawn falls.} ) 40...Rc8 41.Rxb5 Rxc2 42.b4 Rc3+ 43.Kxe4 Rc4+ 44.Kf3 ( 44.Kd5 {Black's counterplay is fast enough after} 44...Rxh4 45.Rb8 h5 46.Kc5 Rh1 47.b5 h4 ) 44...Rxh4 45.Rb6+ Kg5 46.Rb7 g6 47.b5 Rb4 48.Rxh7 Rxb5 49.Kg3 Rb3+ 50.f3 Kf6 1/2-1/2

[Event "FIDE Women's Chess World Championship"]
[Site "Chiva Chongqing"]
[Date "2023.07.18"]
[Round "9"]
[White "Lei, Tingjie"]
[Black "Ju, Wenjun"]
[Result "1/2-1/2"]
[WhiteElo "2554"]
[BlackElo "2564"]
[ECO "B45"]
[EventDate "2023.??.??"]
[Annotator "rafael"]
[PlyCount "117"]
[Beauty "5155705602569"]
[EventCountry "ESP"]
[TimeControl "40/5400+30:1800+30"]

1.e4 c5 {Ju plays the Sicilian Defense for the first time in the match.} 2.Nf3 e6 3.d4 cxd4 4.Nxd4 Nf6 5.Nc3 Nc6 6.Nxc6 {This is the critical move to exploit this move order.} ( 6.Ndb5 {may transpose to the Sveshnikov variation, or Black can try an alternative like 6...Bb4, although this is considered slightly better for White according to theory.} ) 6...bxc6 7.e5 Nd5 8.Ne4 Bb7 {As far as I remember, this line was introduced in elite play by legendary GM Peter Leko in his game against GM Garry Kasparov in 1999.} ( 8...Qc7 {is the most popular move.} ) 9.Be2 {Kasparov's choice.} ( 9.c4 {is also possible, with a lot of modern theory after} 9...Nb4 10.c5 Qb8 11.f4 Ba6 ) 9...c5 10.a3 {Once again, Lei is the first to strike with a new move. This time, however, the novelty doesn't offer much. The idea is to take the b4-square from the knight to play c2-c4.} ( 10.c4 {This move is innacurate due to} 10...Nb4 $1 {[%c_effect b4;square;b4;type;GreatFind;persistent;true]} ) ( 10.O-O Qc7 11.Nd6+ Bxd6 12.exd6 Qc6 13.f3 c4 14.Qd4 O-O 15.Bxc4 Qxd6 {was played in Kasparov-Leko, Linares 1999. Those who remember Kasparov's form in 1999 know that merely surviving in the opening with Black against such a mighty opponent was already a difficult task. Leko managed to get a draw without much trouble.} ) 10...Rc8 {Preparing c5-c4, a good move to secure the knight's post on d5.} ( 10...Qc7 $6 {[%c_effect c7;square;c7;type;Inaccuracy;persistent;true] is not good:} 11.Nd6+ Bxd6 12.exd6 ) ( 10...Be7 {is also natural. White can try} 11.Qd3 $5 {[%c_effect d3;square;d3;type;Interesting;persistent;true] with the idea of c2-c4.} ) 11.c4 Ne3 $1 {[%c_effect e3;square;e3;type;GreatFind;persistent;true]} 12.Bxe3 Bxe4 13.O-O ( 13.Bf3 {immediately is also possible:} 13...Bxf3 14.Qxf3 d5 $1 {[%c_effect d5;square;d5;type;GreatFind;persistent;true] Black has to be careful.} ( 14...Be7 15.Qg3 $1 {[%c_effect g3;square;g3;type;GreatFind;persistent;true] is unpleasant.} ) 15.exd6 Bxd6 {with an equal position.} ) 13...Be7 14.Bf3 Bxf3 15.Qxf3 O-O {If White manages to stabilize the position, she may get a small advantage due to her better pawn structure, with pressure against Black's backward d-pawn. Black, however, is in time to avoid this, breaking with f7-f6.} 16.Rad1 ( 16.Qg3 f6 $1 {[%c_effect f6;square;f6;type;GreatFind;persistent;true]} ) 16...f6 $1 {[%c_effect f6;square;f6;type;GreatFind;persistent;true] This guarantees equality.} 17.Qg3 fxe5 18.Qxe5 Bf6 19.Qd6 Bxb2 {The game is simplifying and quickly heading to a draw.} 20.Bxc5 ( 20.Qxd7 Qxd7 21.Rxd7 Rf7 {is also equal.} ) 20...Rf7 21.Rb1 ( 21.Bxa7 {Black can regain the pawn, and the evaluation is the same:} 21...Qc7 ( 21...Qa5 ) ) 21...Be5 {An interesting move, although not the only one.} ( 21...Bf6 {Prepares ...Be7 and also leads to a draw:} 22.Rb5 ( 22.Bxa7 Qc7 ) 22...Be7 23.Qd4 Bxc5 24.Rxc5 Rxc5 25.Qxc5 Qb8 ) ( 21...Qa5 {is also possible:} 22.Bb4 Be5 $1 {[%c_effect e5;square;e5;type;GreatFind;persistent;true]} 23.Qxe6 dxe6 24.Bxa5 Rxc4 {again with a draw.} ) 22.Qxe5 Rf5 {This is the point.} 23.Qd6 Rfxc5 24.Rb7 R5c7 25.Rfb1 Rxc4 26.g3 R4c7 27.Kg2 {White has compensation for the pawn since her heavy pieces are very active, but nothing more. Black can offer the pawn back to achieve an easy draw.} 27...a5 28.a4 h6 29.h4 Kh8 30.R1b2 Kh7 31.h5 Kh8 32.R2b5 Rxb7 ( 32...Kg8 {It's also possible to keep waiting. White has nothing more than either wait or accept the pawn back and go for a drawn rook endgame.} ) 33.Rxb7 Qf6 34.Rxd7 Rf8 35.f4 Rc8 36.Qd4 Qxd4 37.Rxd4 Kg8 $1 {[%c_effect g8;square;g8;type;GreatFind;persistent;true] Always bring the king to the center in the endgame $1} 38.Re4 Rc2+ 39.Kf3 Ra2 40.Kg4 Ra3 {White has no way to make any progress.} 41.Rxe6 Rxa4 {The position is a dead draw.} 42.Kf5 Kh7 43.Ra6 Ra1 44.Ra7 a4 45.Ra8 a3 46.g4 Ra2 47.g5 hxg5 48.fxg5 g6+ 49.hxg6+ Kg7 50.Ra7+ Kg8 51.g7 Rb2 52.Kg6 Rb6+ 53.Kh5 a2 54.Rxa2 Kxg7 55.Ra7+ Kg8 56.Ra8+ Kg7 57.Ra7+ Kg8 58.Ra8+ Kg7 59.Ra7+ {A good draw for Ju, who faced no opening problems and now has two Whites in the remaining three games.} 1/2-1/2

[Event "E Women's Chess World Championship"]
[Site "Shanghai, China"]
[Date "2023.07.12"]
[Round "6"]
[White "Ju, Wenjun"]
[Black "Lei, Tingjie"]
[Result "1/2-1/2"]
[WhiteElo "2564"]
[BlackElo "2554"]
[ECO "D32"]
[EventDate "2023.??.??"]
[Annotator "rafael"]
[PlyCount "95"]
[Beauty "5704119225862"]
[EventType "match"]
[EventRounds "3"]
[EventCountry "CHN"]
[TimeControl "40/5400+30:1800+30"]

1.d4 d5 2.c4 e6 3.cxd5 exd5 4.Nc3 c5 5.Nf3 Nc6 {The Tarrasch Defense, once one of Kasparov's favorite weapons.} 6.dxc5 ( 6.g3 {is the main line.} 6...Nf6 7.Bg2 cxd4 $5 {[%c_effect d4;square;d4;type;Interesting;persistent;true]} ( 7...Be7 {is the old move.} ) 8.Nxd4 Bc5 {This is an important position for opening theory nowadays.} ) 6...d4 7.Na4 Bxc5 8.Nxc5 Qa5+ 9.Bd2 ( 9.Qd2 {is also possible:} 9...Qxc5 10.e3 ( 10.a3 Nge7 11.b4 Qb6 12.Bb2 O-O 13.Bxd4 Nxd4 14.Qxd4 Nc6 15.Qb2 a5 16.b5 a4 17.e3 Na5 {with compensation for the pawn, as seen in many games.} ) 10...dxe3 11.Qxe3+ Qxe3+ 12.Bxe3 Nge7 {with a similar position to the one played in the game.} ) 9...Qxc5 10.e3 {The third most popular move.} ( 10.Rc1 ) ( 10.b4 ) 10...dxe3 11.Bxe3 Qb4+ 12.Qd2 ( 12.Bd2 {This pawn sacrifice is an attempt to sharpen the game, but White has no advantage after} 12...Qxb2 13.Bc4 Bf5 $1 {[%c_effect f5;square;f5;type;GreatFind;persistent;true]} 14.O-O Nge7 ) 12...Qxd2+ 13.Bxd2 ( 13.Nxd2 Nf6 14.Bb5 O-O 15.Bxc6 bxc6 16.O-O Nd5 {with equality in Mamedyarov-Artemiev, Aimchess Rapid 2021.} ) 13...Nge7 ( 13...Nf6 {is also playable.} ) 14.Bc4 O-O 15.O-O-O a6 {A new move.} ( 15...Bg4 16.Bc3 Bxf3 17.gxf3 Rfd8 18.Rxd8+ Rxd8 19.Rd1 Rxd1+ 20.Kxd1 Nf5 {A draw was agreed in the correspondence game Bjorneboe-Senzacqua, ICCF email 2018. In an over-the-board game, the battle between the pair of knights and pair of bishops can continue.} ) 16.b3 {A good move in order to place the king on the safe b2-square.} 16...Bf5 17.Kb2 b5 18.Be2 Rfd8 {Neither player has consumed much time up to this point, but Ju now starts to think.} 19.Rhe1 Rac8 {White's hopes of winning the endgame are connected to the pair of bishops. Black's pieces, however, are very active, and this is enough to equalize the game.} 20.Bg5 f6 21.Rxd8+ Rxd8 22.Bd2 Bd3 {As is well known, the main strategy against the bishop pair is to try to exchange one of them.} 23.Bd1 Kf7 24.h4 h5 25.a3 g6 {A useful move to protect the h5-pawn.} 26.Be3 Be4 ( 26...Nd5 {is also good.} ) 27.Bb6 Rd7 {The bishop on d1 is not very impressive and Ju decides it's time to exchange it. Without the pair of bishops, White has nothing.} 28.Rxe4 Rxd1 29.Bc5 Rd5 30.Bxe7 Nxe7 {The game quickly peters out to a draw.} 31.a4 Nc6 32.axb5 axb5 33.Kc2 g5 34.hxg5 fxg5 35.Nd2 Re5 36.Rxe5 Nxe5 37.Ne4 Kg6 38.Kd2 Nc6 39.Ke3 h4 40.f3 Na5 41.Nc3 b4 42.Nd5 Nxb3 43.Nxb4 g4 44.fxg4 Kg5 45.Nd3 Kxg4 46.Ne5+ Kg3 47.Ng6 Kxg2 48.Nxh4+ {Lei, once again, got the better of the opening battle. Ju needs to pose more problems to her opponent in that phase of the game.} 1/2-1/2